Workbook

Sheet Introduction (hidden)
B1: Introduction
B2: As part of the development of Consumer Protection Policy for Maryland Energy Administration's (MEA's) Solar Access Program, this workbook was developed with the following 3 objectives:
B3: 1. Calculate the customer's avoidable rate today
B4: 2. Determine what percentage below the avoidable rate is achievable for an assumed PPA rate with and without a rebate
B5: 3. Calculate an equivalent maximum offer for solar lease, loan, and purchase.
B7: The conceptual methodology and an interpretation of results are provided in the accompanying PPA Consumer Benefits Analysis Memo.
B8: Results
B10: Objective 1: | D10: Customer's Avoidable Rates Today ($/kWh)
D11: Weighted Average | E11: PEPCO MD | F11: BGE | G11: Delmarva | H11: PE
D12: ='[1]Maximum Equivalent Offer 0%'!C19 -> #REF! | E12: #REF! | F12: #REF! | G12: #REF! | H12: #REF!
B14: Objective 2: | D14: 0% Escalation
D15: Average Avoidable Rate | F15: Rebate: | G15: without | H15: with
D16: PPA Rate | G16: ='[1]Maximum Equivalent Offer 0%'!C24 -> #REF! | H16: ='[1]Maximum Equivalent Offer 0%'!C33 -> #REF!
D17: Achievable % Below Avoidable Rate | G17: #REF! | H17: #REF!
D18: PPA Cost Savings, Lifetime Average ($/yr) | G18: ='[1]Maximum Equivalent Offer 0%'!C31 -> #REF! | H18: ='[1]Maximum Equivalent Offer 0%'!C40 -> #REF!
D20: 3% Escalation
D21: Average Avoidable Rate | F21: Rebate: | G21: without | H21: with
D22: PPA Rate | G22: ='[1]Maximum Equivalent Offer 3%'!C24 -> #REF! | H22: ='[1]Maximum Equivalent Offer 3%'!C33 -> #REF!
D23: Achievable % Below Avoidable Rate | G23: #REF! | H23: #REF!
D24: PPA Cost Savings, Lifetime Average ($/yr) | G24: ='[1]Maximum Equivalent Offer 3%'!C31 -> #REF! | H24: ='[1]Maximum Equivalent Offer 3%'!C40 -> #REF!
B26: Objective 3: | D26: Equivalent Maximum Offers (Average Avoidable Rate) with 0% Escalation
D27: Offer | F27: Rebate: | G27: without | H27: with
D28: Solar Lease Payment ($/mo, First Year) | G28: ='[1]Maximum Equivalent Offer 0%'!C52 -> #REF! | H28: ='[1]Maximum Equivalent Offer 0%'!C62 -> #REF!
D29: Solar Loan Payment ($/mo) | G29: ='[1]Maximum Equivalent Offer 0%'!C55 -> #REF! | H29: ='[1]Maximum Equivalent Offer 0%'!C65 -> #REF!
D30: Solar Purchase (Max Post-Incentive Cost, $) | G30: ='[1]Maximum Equivalent Offer 0%'!C57 -> #REF! | H30: #REF!
D31: Equivalent Maximum Offers (Average Avoidable Rate) with 3% Escalation
D32: Offer | F32: Rebate: | G32: without | H32: with
D33: Solar Lease Payment ($/mo, First Year) | G33: ='[1]Maximum Equivalent Offer 3%'!C52 -> #REF! | H33: ='[1]Maximum Equivalent Offer 3%'!C62 -> #REF!
D34: Solar Loan Payment ($/mo) | G34: ='[1]Maximum Equivalent Offer 3%'!C55 -> #REF! | H34: ='[1]Maximum Equivalent Offer 3%'!C65 -> #REF!
D35: Solar Purchase (Max Post-Incentive Cost, $) | G35: ='[1]Maximum Equivalent Offer 3%'!C57 -> #REF! | H35: #REF!
B37: Methodology
B38: Items in red are adjustable by MEA.
B39: Calculating the Avoidable Rate
B40: 1. Current utility rates, surcharges, and fees for each of the four major utilities in Maryland were pulled from publicly accessible utility tariffs. Summer and winter rates are blended based on assumed solar production. These rates are updated within the workbook every 6 months.
B41: 2. The utility rates were used to establish the avoidable rates in the table above.
B42: Calculating the % below the avoidable rate that is achievable by a given PPA rate
B43: 3. Using a calculated PPA electricity rate applied to a residential customer, the percent of the PPA rate below the avoidable rate was calculated per utility with and without the MEA rebate. The general inputs for the PPA rate (PPA term length, escalator, etc.) are adjustable by MEA in the Financial Inputs and Summary tab.
B44: 4. The highest PPA rate that could be instituted and still meet the 10% and 20% thresholds below the avoidable rate are calculated for reference on the Financial Inputs and Summary tab.
B45: Calculating Typical Household Energy Usage and Solar System Generation
B46: 5. The average household energy consumption was collected from NREL's ResStock Data for a single family detached house in Maryland (PV Design and Incentives tab, PVWatts_Data tab).
B47: 6. The amount of energy generated from a typical residential solar was collected from NREL's PVWatts tool to estimate daily energy generation. A 10kW [DC] system was assumed as a baseline PV system size and assumptions were made around system specifications. This information is contained in the PVWatts_Data tab. The size of the PV system is adjustable by MEA in the PV Design and Incentives tab.
B48: 7. An estimated cost for a typical PV system was developed using market research, and assumptions were made for savings from incentive including tax credits, SRECs, and the MEA rebate. These incentives can be toggled on and off or adjusted by MEA in the PV Design and Incentives tab.
B49: 8. Using the amount of energy a typical household consumes, their standard utility rate+fees, and the amount of electricity generated from a typical PV system calculated in the previous steps, the customer utility electricity cost + fees with and without the installation of solar system are calculated in the Financial Inputs and Summary tab.
B50: Cost Benefit Analysis for PPA, Lease, and Loan Owners
B51: 8. Financial metrics are also calculated for the system owner of the PPA using metrics such as payback, NPV, IRR, and annualized ROI. These calculations are also located on the Financial Inputs and Summary tab.
B52: Calculating the Equivalent Cases: loan, lease and purchase
B53: 9. In order to consider the equivalent case for a loan, three loan scenarios were evaluated by altering the following variables: loan term, loan rate, and dealer fee. These are adjustable by MEA on the Financial Inputs and Summary tab.
B54: 10. These loan terms are used to calculate expected payments by case with and without the rebate.
B55: 11. Maximum equivalent offers are calculated for each purchasing scenario (lease, loans, and system purchase), maintaining equal lifetime average cost savings. These are summarized in the table above and in the Maximum Equivalent Offer tab.
B57: Description of the Tabs in this Workbook
B58: Utility Rate Inputs : This tab contains the current utility rates for the four major utilities in Maryland. These values will need to be updated regularly by MEA.
B59: Maximum Equivalent Offer : This tab contains full detailed results regarding the maximum equivalent offer by financing mechanism by utility. To update the results of this tab, a new Goal Seek function would need to be run in Excel.
B60: Financial Inputs and Summary : This tab contains full detailed results of the financial analysis by utility. See the table above for high-level results. Financial modeling inputs can be updated on this tab.
B61: PV Design and Incentives: This tab contains "average" PV system capacity and generation specifications based on program requirements, assumed costs, and incentive contributions (tax credits, MEA rebate, SRECs). This tab need only be updated if data is received regarding assumptions that could improve the accuracy of the financial analysis; this can include updated installation costs, more information on the "average" installation, or updated incentives/benefits for PV installation.
B62: PVWatts_Data: This tab contains PV performance assumptions, production estimates, and a daily net metering analysis from NREL's PVWatts tool (https://pvwatts.nrel.gov/). This tab should not require updates.
B64: Tool Rules
B65: Cells in yellow throughout the tool are editable by the user.
B66: Cells in white are pre-calculated and should not be changed.
B67: Comment notes provide further information about methodology and data sources.
B74: Loan and System Purchase Equivalent Rate (No Rebate): Average cost per kWh the customer would need to pay to loan or outright purchase their system over the course of the system's assumed life to meet the minimum MEA requirements.
B76: Avoidable Rate: Per kWh rate the customer would pay for electricity if it was not generating solar (varies by utility). This is the baseline for the analysis.
K82: $/kWh
B83: PPA Rate (No Rebate): Per kWh rate the customer is paying the owner for the power their residential system is generating.
B84: Lease Equivalent Rate (No Rebate): Per kWh cost the customer is paying to lease their system (a calculation of the first month lease payment/first month generation)
B88: PPA Rate (With Rebate): Per kWh rate the customer is paying for the solar their residential system is generating.
B89: Lease Equivalent Rate (With Rebate): Per kWh cost the customer is paying to lease their system (a calculation of the first month lease payment/first month generation)
B91: Loan and System Purchase Equivalent Rate (With Rebate): Average cost per kWh the customer is paying to loan or outright purchase their system over the course of the system's assumed life.

Sheet Lease
B1: Maximum-Equivalent Offer Calculator: Lease
B2: Gray Cells: Static values, not to be edited. Yellow Cells: Input values. Blue Cells: Output values. | F2: Year | G2: PPA Cost [$/yr] | H2: Lease Cost [$/yr] | J2: Avg. System Production [kWh/mo] | K2: PPA Rates [$/kWh]
B3: Static Assumed Values | F3: 0
A4: 1 | B4: System Owner NPV Discount Rate [%] | C4: 0.0475 | F4: =IF(F3>=$C$6,"",F3+1) -> 1 | G4: =K4*J4*12 -> 1764 | H4: =C20*12 -> 1671.193764 | J4: =C12/12 -> 1166.666667 | K4: =C11 -> 0.126
A5: 2 | B5: Annual Degradation Rate [%] | C5: 0.005 | F5: 2 | G5: =IF($F5<>"",J5*K5*12,"") -> 1807.8354 | H5: =IF($F5<>"",H4*(1+$C$16),"") -> 1721.162458 | J5: =IF($F5<>"",J4*(1-$C$5),"") -> 1160.833333 | K5: =IF($F5<>"",K4*(1+$C$7),"") -> 0.12978
A6: 3 | B6: Lease Term, Expected System Lifespan (25-Year Maximum) [yrs] | C6: 25 | F6: 3 | G6: 1852.76011 | H6: 1772.625215 | J6: 1155.029167 | K6: 0.1336734
A7: 4 | B7: PPA Escalator [%/yr] | C7: 0.03 | F7: 4 | G7: 1898.801198 | H7: 1825.626709 | J7: 1149.254021 | K7: 0.137683602
F8: 5 | G8: 1945.986408 | H8: 1880.212948 | J8: 1143.507751 | K8: 0.1418141101
B9: Lease Inputs | F9: 6 | G9: 1994.34417 | H9: 1936.431315 | J9: 1137.790212 | K9: 0.1460685334
A10: 5 | B10: Customer Utility Service Territory | C10: BGE | D10: =IF(C10="Other","Input Custom Utility Electric Rate Below ($/kWh)","") ->  | F10: 7 | G10: 2043.903623 | H10: 1994.330611 | J10: 1132.101261 | K10: 0.1504505894
A11: 6 | B11: Maximum-Offer: First Year Lease Rate with escalator [$/kWh] | C11: =IFERROR(IF(C10="Other",(D11-D11*0.3),VLOOKUP(C10,Inputs!A7:D20,4,FALSE)),0) -> 0.126 | F11: 8 | G11: 2094.694628 | H11: 2053.961097 | J11: 1126.440755 | K11: 0.154964107
A12: 7 | B12: First-Year Projected Total PV Generation [kWh/yr] | C12: 14000 | F12: 9 | G12: 2146.74779 | H12: 2115.374533 | J12: 1120.808551 | K12: 0.1596130303
A13: 8 | B13: The MEA grant is authorized to the contractor, in addition to other federal and state incentives, allowing the contractor to provide a discounted lease rate to the resident | C13: Yes | F13: 10 | G13: 2200.094472 | H13: 2178.624232 | J13: 1115.204508 | K13: 0.1644014212
A14: 9 | B14: Total System Cost (as appears on the contract or disclosure) [$] | C14: 47000 | F14: 11 | G14: 2254.76682 | H14: 2243.765097 | J14: 1109.628486 | K14: 0.1693334638
A15: 10 | B15: Non-solar costs incorporated into the lease rate (enter $0 if lease rate is reflective of solar-related costs only) | C15: 5000 | F15: 12 | G15: 2310.797775 | H15: 2310.853673 | J15: 1104.080343 | K15: 0.1744134677
A16: 11 | B16: Lease Escalator [%/yr] | C16: 0.0299 | F16: 13 | G16: 2368.2211 | H16: 2379.948198 | J16: 1098.559941 | K16: 0.1796458717
A17: 12 | B17: First-year monthly lease rate (as appears on the contract) | C17: 155.75 | F17: 14 | G17: 2427.071394 | H17: 2451.108649 | J17: 1093.067142 | K17: 0.1850352479
F18: 15 | G18: 2487.384118 | H18: 2524.396797 | J18: 1087.601806 | K18: 0.1905863053
A19: 13 | B19: First-year monthly lease rate subject to MEA’s minimum benefits policy (for comparison with Maximum Offer) [$/mo] | C19: =(C14-C15)/C14*C17 -> 139.1808511 | F19: 16 | G19: 2549.195614 | H19: 2599.876262 | J19: 1082.163797 | K19: 0.1963038945
A20: 14 | B20: Maximum Offer: First-Month Lease Payment subject to MEA's policy [$/mo] | C20: =(NPV(C4,G4:G28)*(C4-C16)/(1-(1+C16)^C6*(1+C4)^-C6)/12) -> 139.266147 | F20: 17 | G20: 2612.543125 | H20: 2677.612562 | J20: 1076.752978 | K20: 0.2021930113
F21: 18 | G21: 2677.464821 | H21: 2757.673178 | J21: 1071.369213 | K21: 0.2082588017
A22: 15 | B22: =IF(C19<=C20,Inputs!A24,Inputs!A25) -> The system design meets MEA program requirements. | F22: 19 | G22: 2743.999822 | H22: 2840.127606 | J22: 1066.012367 | K22: 0.2145065657
F23: 20 | G23: 2812.188218 | H23: 2925.047421 | J23: 1060.682305 | K23: 0.2209417627
F24: 21 | G24: 2882.071095 | H24: 3012.506339 | J24: 1055.378894 | K24: 0.2275700156
F25: 22 | G25: 2953.690562 | H25: 3102.580278 | J25: 1050.101999 | K25: 0.234397116
F26: 23 | G26: 3027.089772 | H26: 3195.347429 | J26: 1044.851489 | K26: 0.2414290295
F27: 24 | G27: 3102.312953 | H27: 3290.888317 | J27: 1039.627232 | K27: 0.2486719004
F28: 25 | G28: 3179.40543 | H28: 3389.285877 | J28: 1034.429096 | K28: 0.2561320574
G30: Net Present Value (Cost to Customer)
G31: PPA | H31: Lease
G32: =NPV(C4,G3:G28) -> 32790.06955 | H32: =NPV(C4,H3:H28) -> 32790.06955

Sheet PPA
B1: Maximum-Equivalent Offer Calculator: PPA
B2: Gray Cells: Static values, not to be edited. Yellow Cells: Input values. Blue Cells: Output values. | F2: Year | G2: PPA Cost [$/yr] | I2: Avg. System Production [kWh/mo] | J2: PPA Rates [$/kWh]
B3: Static Assumed Values | F3: 0
A4: 1 | B4: System Owner NPV Discount Rate [%] | C4: 0.0475 | F4: =IF(F3>=$C$6,"",F3+1) -> 1 | G4: =J4*I4*12 -> 1589.7168 | I4: =C12/12 -> 876.1666667 | J4: =C11 -> 0.1512
A5: 2 | B5: System Annual Degradation Rate [%] | C5: 0.005 | F5: 2 | G5: =IF($F5<>"",I5*J5*12,"") -> 1629.221262 | I5: =IF($F5<>"",I4*(1-$C$5),"") -> 871.7858333 | J5: =IF($F5<>"",J4*(1+$C$7),"") -> 0.155736
A6: 3 | B6: PPA and Lease Term, Expected System Lifespan (25-Year Maximum) [yrs] | C6: 25 | F6: 3 | G6: 1669.707411 | I6: 867.4269042 | J6: 0.16040808
A7: 4 | B7: PPA Escalator [%/yr] | C7: 0.03 | F7: 4 | G7: 1711.19964 | I7: 863.0897696 | J7: 0.1652203224
F8: 5 | G8: 1753.722951 | I8: 858.7743208 | J8: 0.1701769321
B9: PPA Inputs | F9: 6 | G9: 1797.302966 | I9: 854.4804492 | J9: 0.17528224
A10: 5 | B10: Customer Utility Service Territory | C10: Pepco | D10: =IF(C10="Other","Input Custom Utility Electric Rate Below ($/kWh)","") ->  | F10: 7 | G10: 1841.965945 | I10: 850.2080469 | J10: 0.1805407072
A11: 6 | B11: Maximum-Offer: First Year PPA Rate with escalator [$/kWh] | C11: =IFERROR(IF(C10="Other",(D11-D11*0.3),VLOOKUP(C10,Inputs!A7:D20,4,FALSE)),0) -> 0.1512 | F11: 8 | G11: 1887.738799 | I11: 845.9570067 | J11: 0.1859569285
A12: 7 | B12: First-Year Projected Total PV Generation [kWh/yr] | C12: 10514 | F12: 9 | G12: 1934.649108 | I12: 841.7272217 | J12: 0.1915356363
A13: 8 | B13: The MEA grant is authorized to the contractor, in addition to other federal and state incentives, allowing the contractor to provide a discounted PPA rate to the resident | C13: Yes | F13: 10 | G13: 1982.725138 | I13: 837.5185856 | J13: 0.1972817054
A14: 9 | B14: PPA rate (as appears on the contract) [$/kWh] | C14: 0.156 | F14: 11 | G14: 2031.995858 | I14: 833.3309926 | J14: 0.2032001566
A15: 10 | B15: Total System Cost (as appears on the contract or disclosure) [$] | C15: 55617.12 | F15: 12 | G15: 2082.490955 | I15: 829.1643377 | J15: 0.2092961613
A16: 11 | B16: Non-solar costs incorporated into the PPA rate (enter $0 if PPA rate is reflective of solar-related costs only) [$] | C16: 5000 | F16: 13 | G16: 2134.240855 | I16: 825.018516 | J16: 0.2155750461
F17: 14 | G17: 2187.276741 | I17: 820.8934234 | J17: 0.2220422975
A18: 12 | B18: PPA rate subject to MEA’s minimum benefits policy (for comparison with Maximum Offer) [$/kWh] | C18: =(C15-C16)/C15*C14 -> 0.1419755413 | F18: 15 | G18: 2241.630568 | I18: 816.7889563 | J18: 0.2287035664
A19: 13 | B19: Maximum Offer: First-Year PPA Rate subject to MEA's policy [$/kWh] | C19: =IF(C10="Other",(D11-D11*0.3),(VLOOKUP(C10,Inputs!A7:D20,4,FALSE))) -> 0.1512 | F19: 16 | G19: 2297.335087 | I19: 812.7050115 | J19: 0.2355646734
F20: 17 | G20: 2354.423864 | I20: 808.6414865 | J20: 0.2426316136
A21: 14 | B21: =IF(C18<=C19,Inputs!A24,Inputs!A25) -> The system design meets MEA program requirements. | F21: 18 | G21: 2412.931297 | I21: 804.598279 | J21: 0.249910562
F22: 19 | G22: 2472.89264 | I22: 800.5752876 | J22: 0.2574078789
F23: 20 | G23: 2534.344022 | I23: 796.5724112 | J23: 0.2651301152
F24: 21 | G24: 2597.322471 | I24: 792.5895491 | J24: 0.2730840187
F25: 22 | G25: 2661.865934 | I25: 788.6266014 | J25: 0.2812765392
F26: 23 | G26: 2728.013303 | I26: 784.6834684 | J26: 0.2897148354
F27: 24 | G27: 2795.804433 | I27: 780.760051 | J27: 0.2984062805
F28: 25 | G28: 2865.280174 | I28: 776.8562508 | J28: 0.3073584689
F30: Net Present Value (Cost to Customer)
F31: PPA
F32: =NPV(C4,G3:G28) -> 29550.41067
B47: Output message of "This does not xyz"

Sheet Loan
B1: Maximum-Equivalent Offer Calculator: Loan
B2: Gray Cells: Static values, not to be edited. Yellow Cells: Input values. Blue Cells: Output values. | F2: Year | G2: PPA Cost [$/yr] | H2: Loan Cost [$/yr] | J2: Avg. System Production [kWh/mo] | K2: PPA Rates [$/kWh]
B3: Static Assumed Values | F3: 0
A4: 1 | B4: System Owner NPV Discount Rate [%] | C4: 0.0475 | F4: =IF(F3>=$C$6,"",F3+1) -> 1 | G4: =K4*J4*12 -> 2297.125467 | H4: =((NPV(C4,G4:G28)*C4)/(1-(1+C4)^-C13)) -> 3354.109575 | J4: =C12/12 -> 2240.25 | K4: =C11 -> 0.085449
A5: 2 | B5: Annual Degradation Rate [%] | C5: 0.005 | F5: 2 | G5: =IF($F5<>"",J5*K5*12,"") -> 2354.209035 | H5: =IF($F5<=$C$13,H4,"") -> 3354.109575 | J5: =IF($F5<>"",J4*(1-$C$5),"") -> 2229.04875 | K5: =IF($F5<>"",K4*(1+$C$7),"") -> 0.08801247
A6: 3 | B6: Loan Term, Expected System Lifespan (25-Year Maximum) [yrs] | C6: 25 | F6: 3 | G6: 2412.711129 | H6: 3354.109575 | J6: 2217.903506 | K6: 0.0906528441
A7: 4 | B7: PPA Escalator [%/yr] | C7: 0.03 | F7: 4 | G7: 2472.667001 | H7: 3354.109575 | J7: 2206.813989 | K7: 0.09337242942
F8: 5 | G8: 2534.112776 | H8: 3354.109575 | J8: 2195.779919 | K8: 0.09617360231
B9: Loan Inputs | F9: 6 | G9: 2597.085478 | H9: 3354.109575 | J9: 2184.801019 | K9: 0.09905881037
A10: 5 | B10: Customer Utility Service Territory | C10: Southern Maryland Electric Cooperative, Inc. | D10: =IF(C10="Other","Input Custom Utility Electric Rate Below ($/kWh)","") ->  | F10: 7 | G10: 2661.623053 | H10: 3354.109575 | J10: 2173.877014 | K10: 0.1020305747
A11: 6 | B11: Maximum-Offer: First Year Loan Rate with escalator [$/kWh] | C11: =IFERROR(IF(C10="Other",(D11-D11*0.3),VLOOKUP(C10,Inputs!A7:D20,4,FALSE)),0) -> 0.085449 | F11: 8 | G11: 2727.764385 | H11: 3354.109575 | J11: 2163.007629 | K11: 0.1050914919
A12: 7 | B12: First-Year Projected Total PV Generation [kWh/yr] | C12: 26883 | F12: 9 | G12: 2795.54933 | H12: 3354.109575 | J12: 2152.192591 | K12: 0.1082442367
A13: 8 | B13: Loan Term (25-Year Maximum) [yrs] | C13: 20 | F13: 10 | G13: 2865.018731 | H13: 3354.109575 | J13: 2141.431628 | K13: 0.1114915638
A14: 9 | B14: Loan Interest Rate (as appears on the contract) [%] | C14: 0.1199 | F14: 11 | G14: 2936.214447 | H14: 3354.109575 | J14: 2130.72447 | K14: 0.1148363107
A15: 10 | B15: Total System Cost (as appears on the contract) [$] | C15: 72994 | F15: 12 | G15: 3009.179376 | H15: 3354.109575 | J15: 2120.070847 | K15: 0.1182814
A16: 11 | B16: Non-solar costs (enter $0 if all costs are solar-related) [$] | C16: 4957 | F16: 13 | G16: 3083.957483 | H16: 3354.109575 | J16: 2109.470493 | K16: 0.121829842
A17: 12 | B17: MEA grant amount to the resident (enter $0 if the grant is authorized to the contractor instead) [$] | C17: 0 | F17: 14 | G17: 3160.593827 | H17: 3354.109575 | J17: 2098.923141 | K17: 0.1254847373
A18: 13 | B18: Federal Tax Credit amount to the resident (enter $0 if the customer has not indicated a willingness to file for the federal ITC. Also enter $0 if the customer has indicated that they do not expect to have the tax liability to benefit from it) [$] | C18: 18633 | F18: 15 | G18: 3239.134583 | H18: 3354.109575 | J18: 2088.428525 | K18: 0.1292492794
F19: 16 | G19: 3319.627078 | H19: 3354.109575 | J19: 2077.986382 | K19: 0.1331267578
A20: 14 | B20: Total Loan Principal subject to MEA’s minimum benefits policy (for comparison with Maximum Offer) [$] | C20: =C15-C16-C17-C18 -> 49404 | F20: 17 | G20: 3402.11981 | H20: 3354.109575 | J20: 2067.59645 | K20: 0.1371205605
A21: 15 | B21: Maximum Offer: Loan Principal subject to MEA's policy [$] | C21: =PV(C14/12,C13*12,-C22,0,0) -> 25400.93726 | F21: 18 | G21: 3486.662488 | H21: 3354.109575 | J21: 2057.258468 | K21: 0.1412341773
A22: 16 | B22: Maximum Offer: Loan Payment subject to MEA's policy [$/mo] | C22: =((NPV(C4,G4:G28)*C4)/(1-(1+C4)^-C13)/12) -> 279.5091313 | F22: 19 | G22: 3573.306051 | H22: 3354.109575 | J22: 2046.972176 | K22: 0.1454712026
F23: 20 | G23: 3662.102706 | H23: 3354.109575 | J23: 2036.737315 | K23: 0.1498353387
A24: 17 | B24: =IF(C20<=C21,Inputs!A24,Inputs!A25) -> The system design does not meet MEA program requirements. | F24: 21 | G24: 3753.105958 | J24: 2026.553628 | K24: 0.1543303989
F25: 22 | G25: 3846.370641 | J25: 2016.42086 | K25: 0.1589603109
F26: 23 | G26: 3941.952952 | J26: 2006.338756 | K26: 0.1637291202
F27: 24 | G27: 4039.910483 | J27: 1996.307062 | K27: 0.1686409938
F28: 25 | G28: 4140.302258 | J28: 1986.325527 | K28: 0.1737002236
G30: Net Present Value (Cost to Customer)
G31: PPA | H31: Loan
G32: =NPV(C4,G3:G28) -> 42700.05885 | H32: =NPV(C4,H3:H28) -> 42700.05885

Sheet System Purchase
B1: Maximum-Equivalent Offer Calculator: System Purchase
B2: Gray Cells: Static values, not to be edited. Yellow Cells: Input values. Blue Cells: Output values. | F2: Year | G2: PPA Cost [$/yr] | I2: Avg. System Production [kWh/mo] | J2: PPA Rates [$/kWh]
B3: Static Assumed Values | F3: 0
A4: 1 | B4: System Owner NPV Discount Rate [%] | C4: 0.0475 | F4: =IF(F3>=$C$6,"",F3+1) -> 1 | G4: =J4*I4*12 -> 1680.1344 | I4: =C12/12 -> 926 | J4: =C11 -> 0.1512
A5: 2 | B5: Annual Degradation Rate [%] | C5: 0.005 | F5: 2 | G5: =IF($F5<>"",I5*J5*12,"") -> 1721.88574 | I5: =IF($F5<>"",I4*(1-$C$5),"") -> 921.37 | J5: =IF($F5<>"",J4*(1+$C$7),"") -> 0.155736
A6: 3 | B6: Expected System Lifespan (25-Year Maximum) [yrs] | C6: 25 | F6: 3 | G6: 1764.6746 | I6: 916.76315 | J6: 0.16040808
A7: 4 | B7: PPA Escalator [%/yr] | C7: 0.03 | F7: 4 | G7: 1808.526764 | I7: 912.1793343 | J7: 0.1652203224
F8: 5 | G8: 1853.468654 | I8: 907.6184376 | J8: 0.1701769321
B9: System Purchase Inputs | F9: 6 | G9: 1899.52735 | I9: 903.0803454 | J9: 0.17528224
A10: 5 | B10: Customer Utility Service Territory | C10: Pepco | D10: =IF(C10="Other","Input Custom Utility Electric Rate Below ($/kWh)","") ->  | F10: 7 | G10: 1946.730605 | I10: 898.5649437 | J10: 0.1805407072
A11: 6 | B11: Maximum-Offer: First Year PPA Rate with escalator [$/kWh] | C11: =IFERROR(IF(C10="Other",(D11-D11*0.3),VLOOKUP(C10,Inputs!A7:D20,4,FALSE)),0) -> 0.1512 | F11: 8 | G11: 1995.106861 | I11: 894.0721189 | J11: 0.1859569285
A12: 7 | B12: First-Year Projected Total PV Generation [kWh/yr] | C12: 11112 | F12: 9 | G12: 2044.685266 | I12: 889.6017584 | J12: 0.1915356363
A13: 8 | B13: Total System Cost (as appears on the contract, or internally valued) [$] | C13: 40000 | F13: 10 | G13: 2095.495695 | I13: 885.1537496 | J13: 0.1972817054
A14: 9 | B14: Non-solar costs (enter $0 if all costs are solar-related) [$] | C14: 5000 | F14: 11 | G14: 2147.568763 | I14: 880.7279808 | J14: 0.2032001566
A15: 10 | B15: MEA grant amount to the resident (enter $0 if the grant is authorized to the contractor instead) [$] | C15: 5500 | F15: 12 | G15: 2200.935847 | I15: 876.3243409 | J15: 0.2092961613
A16: 11 | B16: Federal Tax Credit amount to the resident (enter $0 if the customer has not indicated a willingness to file for the federal ITC. Also enter $0 if the customer has indicated that they do not expect to have the tax liability to benefit from it) [$] | C16: 11667 | F16: 13 | G16: 2255.629103 | I16: 871.9427192 | J16: 0.2155750461
F17: 14 | G17: 2311.681486 | I17: 867.5830056 | J17: 0.2220422975
A18: 13 | B18: Total Cost subject to MEA’s minimum benefits policy (for comparison with Maximum Offer) [$] | C18: =C13-C14-C15-C16 -> 17833 | F18: 15 | G18: 2369.126771 | I18: 863.2450906 | J18: 0.2287035664
A19: 14 | B19: Maximum Offer: System Purchase Cost subject to MEA's policy [$] | C19: =F32 -> 31231.13595 | F19: 16 | G19: 2427.999571 | I19: 858.9288651 | J19: 0.2355646734
F20: 17 | G20: 2488.33536 | I20: 854.6342208 | J20: 0.2426316136
A21: 15 | B21: =IF(C18<=C19,Inputs!A24,Inputs!A25) -> The system design meets MEA program requirements. | F21: 18 | G21: 2550.170494 | I21: 850.3610497 | J21: 0.249910562
F22: 19 | G22: 2613.542231 | I22: 846.1092444 | J22: 0.2574078789
F23: 20 | G23: 2678.488755 | I23: 841.8786982 | J23: 0.2651301152
F24: 21 | G24: 2745.049201 | I24: 837.6693047 | J24: 0.2730840187
F25: 22 | G25: 2813.263673 | I25: 833.4809582 | J25: 0.2812765392
F26: 23 | G26: 2883.173276 | I26: 829.3135534 | J26: 0.2897148354
F27: 24 | G27: 2954.820132 | I27: 825.1669857 | J27: 0.2984062805
F28: 25 | G28: 3028.247412 | I28: 821.0411507 | J28: 0.3073584689
F30: Net Present Value (Cost to Customer)
F31: PPA / System Purchase
F32: =NPV(C4,G3:G28) -> 31231.13595

Sheet Reference Values
B1: Current Avoidable Rate ($/kWh) | C1: Maximum Offer: first year PPA rate without PPA escalator ($/kWh) | D1: Maximum Offer: first year PPA rate with PPA escalator ($/kWh) | E1: Source
A2: Pepco | B2: 0.216 | C2: =B2-B2*0.2 -> 0.1728 | D2: =B2-B2*0.3 -> 0.1512 | E2: Previous Calculator
A3: BGE | B3: 0.18 | C3: 0.144 | D3: 0.126 | E3: Previous Calculator
A4: Demarva Power | B4: 0.21 | C4: 0.168 | D4: 0.147 | E4: Previous Calculator
A5: Potomac Edison | B5: 0.141 | C5: 0.1128 | D5: 0.0987 | E5: Previous Calculator
A6: Southern Maryland Electric Cooperative, Inc. | B6: 0.11708 | C6: 0.093664 | D6: 0.081956 | E6: SCHEDULE R - RESIDENTIAL SERVICE
A7: Berlin Municipal Elctric Plant | B7: 0.09905 | C7: 0.07924 | D7: 0.069335 | E7: Microsoft Word - Berlin Electric Service Tariff No 11 FINAL
A8: Easton Utilities Commission | B8: 0.1338 | C8: 0.10704 | D8: 0.09366 | E8: electric-tariff.pdf
A9: City of Hagerstown Light Department | B9: 0.08161 | C9: 0.065288 | D9: 0.057127 | E9: New HLD Tariff2 version for PSC (D0009799.DOC;1)
A10: Thurmont Municipal Light Company | B10: 0.10883 | C10: 0.087064 | D10: 0.076181 | E10: Thurmont Electric Service Tariff - Thurmont Draft 2
A11: Williamsport Municipal Electric Light System | B11: 0.1236991547 | C11: 0.09895932376 | D11: 0.08658940829 | E11: Utilities - Town of Williamsport
A12: A&N Electric Cooperative | B12: 0.85725 | C12: 0.6858 | D12: 0.600075 | E12: ANEC-A-1-Residential.pdf
A13: Choptank Electric Cooperative Inc | B13: 0.13876 | C13: 0.111008 | D13: 0.097132 | E13: Microsoft Word - 03.01.2025 Choptank Electric Tariff and Terms and Conditions
A14: Somerset Rural Electric Cooperative | B14: 0.12207 | C14: 0.097656 | D14: 0.085449 | E14: Current Rates | Somerset Rural Electric Cooperative, Inc

Sheet Inputs (hidden)
A2: Dropdown Lists
A3: Yes
A4: No
A6: Utility Service Territory | B6: Avoidable Rate ($/kWh) | C6: Maximum Offer: first year PPA rate ($/kWh) (No Escalator) | D6: Maximum Offer: first year PPA rate ($/kWh) (Escalator)
A7: Pepco | B7: ='Reference Values'!B2 -> 0.216 | C7: ='Reference Values'!C2 -> 0.1728 | D7: ='Reference Values'!D2 -> 0.1512
A8: BGE | B8: ='Reference Values'!B3 -> 0.18 | C8: ='Reference Values'!C3 -> 0.144 | D8: ='Reference Values'!D3 -> 0.126
A9: Delmarva Power | B9: ='Reference Values'!B4 -> 0.21 | C9: ='Reference Values'!C4 -> 0.168 | D9: ='Reference Values'!D4 -> 0.147
A10: Potomac Edison | B10: ='Reference Values'!B5 -> 0.141 | C10: ='Reference Values'!C5 -> 0.1128 | D10: ='Reference Values'!D5 -> 0.0987
A11: Berlin Municipal Electric Plant | B11: ='Reference Values'!B6 -> 0.11708 | C11: ='Reference Values'!C6 -> 0.093664 | D11: ='Reference Values'!D6 -> 0.081956
A12: Easton Utilities Commission | B12: ='Reference Values'!B7 -> 0.09905 | C12: ='Reference Values'!C7 -> 0.07924 | D12: ='Reference Values'!D7 -> 0.069335
A13: City of Hagerstown Light Department | B13: ='Reference Values'!B8 -> 0.1338 | C13: ='Reference Values'!C8 -> 0.10704 | D13: ='Reference Values'!D8 -> 0.09366
A14: Thurmont Municipal Light Company | B14: ='Reference Values'!B9 -> 0.08161 | C14: ='Reference Values'!C9 -> 0.065288 | D14: ='Reference Values'!D9 -> 0.057127
A15: Williamsport Municipal Electric Light System | B15: ='Reference Values'!B10 -> 0.10883 | C15: ='Reference Values'!C10 -> 0.087064 | D15: ='Reference Values'!D10 -> 0.076181
A16: A&N Electric Cooperative | B16: ='Reference Values'!B11 -> 0.1236991547 | C16: ='Reference Values'!C11 -> 0.09895932376 | D16: ='Reference Values'!D11 -> 0.08658940829
A17: Choptank Electric Cooperative Inc | B17: ='Reference Values'!B12 -> 0.85725 | C17: ='Reference Values'!C12 -> 0.6858 | D17: ='Reference Values'!D12 -> 0.600075
A18: Somerset Rural Electric Cooperative | B18: ='Reference Values'!B13 -> 0.13876 | C18: ='Reference Values'!C13 -> 0.111008 | D18: ='Reference Values'!D13 -> 0.097132
A19: Southern Maryland Electric Cooperative, Inc. | B19: ='Reference Values'!B14 -> 0.12207 | C19: ='Reference Values'!C14 -> 0.097656 | D19: ='Reference Values'!D14 -> 0.085449
A20: Other | B20: ='Reference Values'!B15 ->  | C20: ='Reference Values'!C15 ->  | D20: ='Reference Values'!D15 -> 
A23: System Compliance Messages
A24: The system design meets MEA program requirements.
A25: The system design does not meet MEA program requirements.
